{"text_format":"1","workbook":"xlsx","n_sheets":2,"sheets":["RecursosMO ","RecursosMO, despues"],"not_rendered":{"charts":0,"images":0,"macros":1,"external_links":7,"defined_names":554,"comments":0,"pivot_tables":0},"unopened":[],"bounds":{"document_bytes":16777216,"sheet_cells":100000,"rows_first":2000,"rows_last":500,"rows_between":2000,"halvings":0,"cell_chars":16384,"cell_head_chars":4096},"cells_cut":0,"cells_raw":0,"read":"whole","date_system":"1900"}

{"sheet":"RecursosMO ","index":0,"n_rows":79,"n_cols":134,"rows_kept":79,"cut":false,"hidden":false,"merged":[[8,127,8,133],[9,1,10,1],[9,2,10,2],[9,3,10,3],[9,4,10,4],[9,5,10,5],[9,6,10,6],[8,85,8,91],[8,92,8,98],[8,99,8,105],[8,106,8,112],[8,113,8,119],[8,120,8,126],[8,43,8,49],[8,50,8,56],[8,57,8,63],[8,64,8,70],[8,71,8,77],[8,78,8,84],[8,8,8,14],[8,15,8,21],[8,22,8,28],[8,29,8,35],[8,36,8,42],[6,8,6,33],[6,34,6,64],[6,65,6,94],[6,95,6,125],[6,126,6,133]]}
[]
[null,null,null,null,null,null,null,null,null,null,null,null,null,"macro 1 resumir operaciones asignar valores hasta la fila 79, esta debe variar si las filas se garegan la macro debe funcionar"]
[]
[]
[]
[]
[null,null,null,null,null,null,null,"Horario","JULIO",null,null,null,null,null,null,null,null,null,null,null,null,null,null,null,null,null,null,null,null,null,null,null,null,null,"AGOSTO",null,null,null,null,null,null,null,null,null,null,null,null,null,null,null,null,null,null,null,null,null,null,null,null,null,null,null,null,null,null,"SETIEMBRE",null,null,null,null,null,null,null,null,null,null,null,null,null,null,null,null,null,null,null,null,null,null,null,null,null,null,null,null,null,"OCTUBRE",null,null,null,null,null,null,null,null,null,null,null,null,null,null,null,null,null,null,null,null,null,null,null,null,null,null,null,null,null,null,"NOVIEMBRE"]
[null,null,null,null,null,null,null,9.5,1,2,3,4,5,6,7,8,9,10,11,12,13,14,15,16,17,18,19,20,21,22,23,24,25,26,27,28,29,30,31,32,33,34,35,36,37,38,39,40,41,42,43,44,45,46,47,48,49,50,51,52,53,54,55,56,57,58,59,60,61,62,63,64,65,66,67,68,69,70,71,72,73,74,75,76,77,78,79,80,81,82,83,84,85,86,87,88,89,90,91,92,93,94,95,96,97,98,99,100,101,102,103,104,105,106,107,108,109,110,111,112,113,114,115,116,117,118,119,120,121,122,123,124,125,126]
[null,null,null,null,null,null,null,null,"Semana Nº 1",null,null,null,null,null,null,"Semana Nº 2",null,null,null,null,null,null,"Semana Nº 3",null,null,null,null,null,null,"Semana Nº 4",null,null,null,null,null,null,"Semana Nº 5",null,null,null,null,null,null,"Semana Nº 6",null,null,null,null,null,null,"Semana Nº 7",null,null,null,null,null,null,"Semana Nº 8",null,null,null,null,null,null,"Semana Nº 9",null,null,null,null,null,null,"Semana Nº 10",null,null,null,null,null,null,"Semana Nº 11",null,null,null,null,null,null,"Semana Nº 12",null,null,null,null,null,null,"Semana Nº 13",null,null,null,null,null,null,"Semana Nº 14",null,null,null,null,null,null,"Semana Nº 15",null,null,null,null,null,null,"Semana Nº 16",null,null,null,null,null,null,"Semana Nº 17",null,null,null,null,null,null,"Semana Nº 18"]
[null,"FASE O PLAN","ETAPA","ACTIVIDADES","und","Metrado Piso Tipico","Metrado por Sector","Ratio","L","M","X","J","V","S","D","L","M","X","J","V","S","D","L","M","X","J","V","S","D","L","M","X","J","V","S","D","L","M","X","J","V","S","D","L","M","X","J","V","S","D","L","M","X","J","V","S","D","L","M","X","J","V","S","D","L","M","X","J","V","S","D","L","M","X","J","V","S","D","L","M","X","J","V","S","D","L","M","X","J","V","S","D","L","M","X","J","V","S","D","L","M","X","J","V","S","D","L","M","X","J","V","S","D","L","M","X","J","V","S","D","L","M","X","J","V","S","D","L","M","X","J","V","S","D"]
[null,null,null,null,null,null,null,"Productividad","2020-07-06","2020-07-07","2020-07-08","2020-07-09","2020-07-10","2020-07-11","2020-07-12","2020-07-13","2020-07-14","2020-07-15","2020-07-16","2020-07-17","2020-07-18","2020-07-19","2020-07-20","2020-07-21","2020-07-22","2020-07-23","2020-07-24","2020-07-25","2020-07-26","2020-07-27","2020-07-28","2020-07-29","2020-07-30","2020-07-31","2020-08-01","2020-08-02","2020-08-03","2020-08-04","2020-08-05","2020-08-06","2020-08-07","2020-08-08","2020-08-09","2020-08-10","2020-08-11","2020-08-12","2020-08-13","2020-08-14","2020-08-15","2020-08-16","2020-08-17","2020-08-18","2020-08-19","2020-08-20","2020-08-21","2020-08-22","2020-08-23","2020-08-24","2020-08-25","2020-08-26","2020-08-27","2020-08-28","2020-08-29","2020-08-30","2020-08-31","2020-09-01","2020-09-02","2020-09-03","2020-09-04","2020-09-05","2020-09-06","2020-09-07","2020-09-08","2020-09-09","2020-09-10","2020-09-11","2020-09-12","2020-09-13","2020-09-14","2020-09-15","2020-09-16","2020-09-17","2020-09-18","2020-09-19","2020-09-20","2020-09-21","2020-09-22","2020-09-23","2020-09-24","2020-09-25","2020-09-26","2020-09-27","2020-09-28","2020-09-29","2020-09-30","2020-10-01","2020-10-02","2020-10-03","2020-10-04","2020-10-05","2020-10-06","2020-10-07","2020-10-08","2020-10-09","2020-10-10","2020-10-11","2020-10-12","2020-10-13","2020-10-14","2020-10-15","2020-10-16","2020-10-17","2020-10-18","2020-10-19","2020-10-20","2020-10-21","2020-10-22","2020-10-23","2020-10-24","2020-10-25","2020-10-26","2020-10-27","2020-10-28","2020-10-29","2020-10-30","2020-10-31","2020-11-01","2020-11-02","2020-11-03","2020-11-04","2020-11-05","2020-11-06","2020-11-07","2020-11-08"]
[null,null,null,"tarea1","glb."]
[null,null,null,"tarea2","glb.",1,9.5,9,"S1","S2","S3","S4","S5","S6",null,"S7"]
[null,null,null,"tarea3","glb."]
[null,null,null,"tarea4","glb.",1,9.5,4,null,null,null,null,null,null,null,"P1S1","P1S2","P1S3","P1S4","P1S5","P1S6"]
[null,null,null,"tarea5","glb.",1,9.5,4,null,null,null,null,null,null,null,"P1S1","P1S2","P1S3","P1S4","P1S5","P1S6"]
[null,null,null,"tarea6","glb.",1,9.5,4,null,null,null,null,null,null,null,null,"P1S1","P1S2","P1S3","P1S4","P1S5",null,"P1S6"]
[null,null,null,"tarea7","glb.",1,9.5,2,null,null,null,null,null,null,null,null,null,"P1S1","P1S2","P1S3","P1S4",null,"P1S5","P1S6"]
[null,null,null,"tarea8","glb.",1,9.5,2,null,null,null,null,null,null,null,null,null,null,"P1S1","P1S2","P1S3",null,"P1S4","P1S5","P1S6"]
[null,null,null,"tarea9","glb.",1,9.5,2,null,null,null,null,null,null,null,null,null,null,null,null,null,null,null,null,null,null,null,null,null,null,null,null,null,null,null,null,null,null,null,null,null,null,null,null,null,null,null,null,null,null,null,null,null,null,null,null,null,null,null,null,null,null,null,null,null,null,null,null,null,"P1S1",null,"P1S1","P1S1","P1S2","P1S2","P1S2","P1S3",null,"P1S3","P1S3","P1S4","P1S4","P1S4","P1S5",null,"P1S5","P1S5","P1S6","P1S6","P1S6","P1S7",null,"P1S7","P1S7","P1S8","P1S8","P1S8","P1S9",null,"P1S9","P1S9"]
[null,null,null,"tarea10","glb.",1,9.5,3,null,null,null,null,null,null,null,null,null,null,null,null,null,null,null,null,null,null,null,null,null,null,null,null,null,null,null,null,null,null,null,null,null,null,null,null,null,null,null,null,null,null,null,null,null,null,null,null,null,"P1S1","P1S1","P1S1","P1S2","P1S2","P1S2",null,"P1S3","P1S3","P1S3","P1S4","P1S4","P1S4",null,"P1S5","P1S5","P1S5","P1S6","P1S6","P1S6",null,"P1S7","P1S7","P1S7","P1S8","P1S8","P1S8",null,"P1S9","P1S9","P1S9","P1S10","P1S10","P1S10",null,"P1S11"]
[null,null,null,"tarea11","glb.",null,0]
[null,null,null,"tarea12","glb.",736.63200000000006,66.966545454545454,0.14709090909090908,null,null,null,null,null,null,null,null,null,null,null,null,null,null,"P1S1","P1S2","P1S3","P1S4","P1S5","P1S6",null,"P1S7",null,null,"P1S8"]
[null,null,null,"tarea13","glb.",421.10909999999996,38.282645454545452,2.1363636363636362,null,null,null,null,null,null,null,null,null,null,null,null,null,null,null,null,null,null,null,null,null,"P1S1",null,null,"P1S2","P1S3","P1S4",null,"P1S5","P1S6","P1S7","P1S8"]
[null,null,null,"tarea14","glb.",null,0]
[null,null,null,"tarea15","glb.",270.41849999999999,33.802312499999999,0.65454545454545443,null,null,null,null,null,null,null,null,null,null,null,null,null,null,null,null,null,null,null,null,null,null,null,null,"P1S1","P1S2","P1S3",null,"P1S4","P1S5","P1S6","P1S7","P1S8"]
[null,null,null,"tarea16","glb.",6678.2,834.77499999999998,4.2000000000000003E-2,null,null,null,null,null,null,null,null,null,null,null,null,null,null,null,null,null,null,null,null,null,null,null,null,null,"P1S1","P1S2",null,"P1S3","P1S4","P1S5","P1S6","P1S7","P1S8"]
[null,null,null,"tarea17","glb.",171.02,21.377500000000001,1.9090909090909089,null,null,null,null,null,null,null,null,null,null,null,null,null,null,null,null,null,null,null,null,null,null,null,null,null,null,"P1S1",null,"P1S2","P1S3","P1S4","P1S5","P1S6","P1S7",null,"P1S8"]
[null,null,null,"tarea18","glb.",162.25,20.28125,0.7,null,null,null,null,null,null,null,null,null,null,null,null,null,null,null,null,null,null,null,null,null,null,null,null,null,null,"P1S1",null,"P1S2","P1S3","P1S4","P1S5","P1S6","P1S7",null,"P1S8"]
[null,null,null,"tarea19","glb.",21942.438832,2742.804854,4.2000000000000003E-2,null,null,null,null,null,null,null,null,null,null,null,null,null,null,null,null,null,null,null,null,null,null,null,null,null,null,null,null,"P1S1","P1S2","P1S3","P1S4","P1S5","P1S6",null,"P1S7","P1S8"]
[null,null,null,"tarea20","glb.",1463.001,182.875125,1.9090909090909089,null,null,null,null,null,null,null,null,null,null,null,null,null,null,null,null,null,null,null,null,null,null,null,null,null,null,null,null,null,"P1S1","P1S2","P1S3","P1S4","P1S5",null,"P1S6","P1S7","P1S8"]
[null,null,null,"tarea21","glb.",182.87722500000001,22.859653125000001,0.7,null,null,null,null,null,null,null,null,null,null,null,null,null,null,null,null,null,null,null,null,null,null,null,null,null,null,null,null,null,"P1S1","P1S2","P1S3","P1S4","P1S5",null,"P1S6","P1S7","P1S8"]
[null,null,null,"tarea22","glb.",null,0]
[null,null,null,"tarea23","glb.",null,0,2.1363636363636362,null,null,null,null,null,null,null,null,null,null,null,null,null,null,null,null,null,null,null,null,null,null,null,null,null,null,null,null,null,null,null,null,null,null,null,"P1S1","P1S2","P1S3","P1S4","P1S5","P1S6",null,"P1S7","P1S8"]
[null,null,null,"tarea24","glb.",132.98999999999998,16.623749999999998,1,null,null,null,null,null,null,null,null,null,null,null,null,null,null,null,null,null,null,null,null,null,null,null,null,null,null,null,null,null,null,null,null,null,null,null,"P1S1","P1S2","P1S3","P1S4","P1S5","P1S6",null,"P1S7","P1S8"]
[null,null,null,"tarea25","glb.",5022.4320000000007,627.80400000000009,4.2000000000000003E-2,null,null,null,null,null,null,null,null,null,null,null,null,null,null,null,null,null,null,null,null,null,null,null,null,null,null,null,null,null,null,null,null,null,null,null,null,"P1S1","P1S2","P1S3","P1S4","P1S5",null,"P1S6","P1S7","P1S8"]
[null,null,null,"tarea26","glb.",346.44999999999993,43.306249999999991,0.76363636363636356,null,null,null,null,null,null,null,null,null,null,null,null,null,null,null,null,null,null,null,null,null,null,null,null,null,null,null,null,null,null,null,null,null,null,null,null,null,"P1S1","P1S2","P1S3","P1S4",null,"P1S5","P1S6","P1S7","P1S8"]
[null,null,null,"tarea27","glb.",109.23899999999999,13.654874999999999,0.7,null,null,null,null,null,null,null,null,null,null,null,null,null,null,null,null,null,null,null,null,null,null,null,null,null,null,null,null,null,null,null,null,null,null,null,null,null,"P1S1","P1S2","P1S3","P1S4",null,"P1S5","P1S6","P1S7","P1S8"]
[null,null,null,"tarea28","glb.",null,0,0.90434782608695663,null,null,null,null,null,null,null,null,null,null,null,null,null,null,null,null,null,null,null,null,null,null,null,null,null,null,null,null,null,null,null,null,null,null,null,null,null,null,"P1S1","P1S2","P1S3",null,"P1S4","P1S5","P1S6","P1S7","P1S8"]
[null,null,null,"tarea29","glb.",null,0]
[null,null,null,"tarea30","glb.",21663.889727999998,1969.4445207272727,4.2000000000000003E-2,null,null,null,null,null,null,null,null,null,null,null,null,null,null,null,null,null,null,null,null,null,null,null,null,null,null,null,null,null,null,null,null,null,null,null,null,null,null,null,"P1S1","P1S2",null,"P1S3","P1S4","P1S5","P1S6","P1S7","P1S8",null,"P1S9","P1S10","P1S11"]
[null,null,null,"tarea31","glb.",442.26000000000005,40.20545454545455,1.7500000000000002,null,null,null,null,null,null,null,null,null,null,null,null,null,null,null,null,null,null,null,null,null,null,null,null,null,null,null,null,null,null,null,null,null,null,null,null,null,null,null,null,"P1S1",null,"P1S2","P1S3","P1S4","P1S5","P1S6","P1S7",null,"P1S8","P1S9","P1S10","P1S11"]
[null,null,null,"tarea32","glb.",62.244000000000007,5.6585454545454548,1.7920000000000003,null,null,null,null,null,null,null,null,null,null,null,null,null,null,null,null,null,null,null,null,null,null,null,null,null,null,null,null,null,null,null,null,null,null,null,null,null,null,null,null,"P1S1",null,"P1S2","P1S3","P1S4","P1S5","P1S6","P1S7",null,"P1S8","P1S9","P1S10","P1S11"]
[null,null,null,"tarea33","glb.",null,0]
[null,null,null,"tarea34","glb.",941.64000000000021,85.603636363636383,1.5652173913043479,null,null,null,null,null,null,null,null,null,null,null,null,null,null,null,null,null,null,null,null,null,null,null,null,null,null,null,null,null,null,null,null,null,null,null,null,null,null,null,null,null,null,"P1S1","P1S1","P1S2","P1S2","P1S3","P1S3",null,"P1S4","P1S4","P1S5","P1S5","P1S6","P1S6",null,"P1S7","P1S7","P1S8","P1S8","P1S9","P1S9",null,"P1S10","P1S10","P1S11","P1S11"]
[null,null,null,"tarea35","glb.",35785.141429999996,3253.1946754545452,4.2000000000000003E-2,null,null,null,null,null,null,null,null,null,null,null,null,null,null,null,null,null,null,null,null,null,null,null,null,null,null,null,null,null,null,null,null,null,null,null,null,null,null,null,null,null,null,null,"P1S1","P1S1","P1S2","P1S2","P1S3",null,"P1S3","P1S4","P1S4","P1S5","P1S5","P1S6",null,"P1S6","P1S7","P1S7","P1S8","P1S8","P1S9",null,"P1S9","P1S10","P1S10","P1S11","P1S11"]
[null,null,null,"tarea36","glb.",3808.0170000000003,346.18336363636365,1.5652173913043479,null,null,null,null,null,null,null,null,null,null,null,null,null,null,null,null,null,null,null,null,null,null,null,null,null,null,null,null,null,null,null,null,null,null,null,null,null,null,null,null,null,null,null,null,"P1S1","P1S1","P1S2","P1S2",null,"P1S3","P1S3","P1S4","P1S4","P1S5","P1S5",null,"P1S6","P1S6","P1S7","P1S7","P1S8","P1S8",null,"P1S9","P1S9","P1S10","P1S10","P1S11","P1S11"]
[null,null,null,"tarea37","glb.",78318.236306999985,7119.8396642727257,4.2000000000000003E-2,null,null,null,null,null,null,null,null,null,null,null,null,null,null,null,null,null,null,null,null,null,null,null,null,null,null,null,null,null,null,null,null,null,null,null,null,null,null,null,null,null,null,null,null,null,"P1S1","P1S1","P1S2",null,"P1S2","P1S3","P1S3","P1S4","P1S4","P1S5",null,"P1S5","P1S6","P1S6","P1S7","P1S7","P1S8",null,"P1S8","P1S9","P1S9","P1S10","P1S10","P1S11",null,"P1S11"]
[null,null,null,"tarea38","glb.",1,9.0909090909090912E-2,4,null,null,null,null,null,null,null,null,null,null,null,null,null,null,null,null,null,null,null,null,null,null,null,null,null,null,null,null,null,null,null,null,null,null,null,null,null,null,null,null,null,null,null,null,null,null,"P1S1","P1S1",null,"P1S2","P1S2","P1S3","P1S3","P1S4","P1S4",null,"P1S5","P1S5","P1S6","P1S6","P1S7","P1S7",null,"P1S8","P1S8","P1S9","P1S9","P1S10","P1S10",null,"P1S11","P1S11"]
[null,null,null,"tarea39","glb.",1,9.0909090909090912E-2,4,null,null,null,null,null,null,null,null,null,null,null,null,null,null,null,null,null,null,null,null,null,null,null,null,null,null,null,null,null,null,null,null,null,null,null,null,null,null,null,null,null,null,null,null,null,null,"P1S1","P1S1",null,"P1S2","P1S2","P1S3","P1S3","P1S4","P1S4",null,"P1S5","P1S5","P1S6","P1S6","P1S7","P1S7",null,"P1S8","P1S8","P1S9","P1S9","P1S10","P1S10",null,"P1S11","P1S11"]
[null,null,null,"tarea40","glb.",625.78694999999982,56.889722727272712,1.2695652173913043,null,null,null,null,null,null,null,null,null,null,null,null,null,null,null,null,null,null,null,null,null,null,null,null,null,null,null,null,null,null,null,null,null,null,null,null,null,null,null,null,null,null,null,null,null,null,null,null,null,"P1S1",null,"P1S2",null,"P1S3",null,null,"P1S4",null,"P1S5",null,"P1S6",null,null,"P1S7",null,"P1S8",null,"P1S9",null,null,"P1S10",null,"P1S11"]
[null,null,null,"tarea41","glb.",442.26000000000005,40.20545454545455,0.63636363636363624,null,null,null,null,null,null,null,null,null,null,null,null,null,null,null,null,null,null,null,null,null,null,null,null,null,null,null,null,null,null,null,null,null,null,null,null,null,null,null,null,null,null,null,null,null,null,null,null,null,"P1S1",null,"P1S2",null,"P1S3",null,null,"P1S4",null,"P1S5",null,"P1S6",null,null,"P1S7",null,"P1S8",null,"P1S9",null,null,"P1S10",null,"P1S11"]
[null,null,null,"tarea42","glb.",null,0]
[null,null,null,"tarea43","glb.",13081.908000000001,1308.1908000000001,4.2000000000000003E-2,null,null,null,null,null,null,null,null,null,null,null,null,null,null,null,null,null,null,null,null,null,null,null,null,null,null,null,null,null,null,null,null,null,null,null,null,null,null,null,null,null,null,null,null,null,null,null,null,null,null,null,null,null,null,null,null,null,null,null,null,null,null,null,null,null,null,null,null,null,null,null,null,null,null,null,null,null,"P1S1","P1S2","P1S3","P1S4","P1S5","P1S6",null,"P1S7","P1S8","P1S9","P1S10"]
[null,null,null,"tarea44","glb.",87.902999999999992,8.7902999999999984,0.65,null,null,null,null,null,null,null,null,null,null,null,null,null,null,null,null,null,null,null,null,null,null,null,null,null,null,null,null,null,null,null,null,null,null,null,null,null,null,null,null,null,null,null,null,null,null,null,null,null,null,null,null,null,null,null,null,null,null,null,null,null,null,null,null,null,null,null,null,null,null,null,null,null,null,null,null,null,null,"P1S1","P1S2","P1S3","P1S4","P1S5",null,"P1S6","P1S7","P1S8","P1S9","P1S10"]
[null,null,null,"tarea45","glb.",231.99,23.199000000000002,1,null,null,null,null,null,null,null,null,null,null,null,null,null,null,null,null,null,null,null,null,null,null,null,null,null,null,null,null,null,null,null,null,null,null,null,null,null,null,null,null,null,null,null,null,null,null,null,null,null,null,null,null,null,null,null,null,null,null,null,null,null,null,null,null,null,null,null,null,null,null,null,null,null,null,null,null,null,null,null,"P1S1","P1S2","P1S3","P1S4",null,"P1S5","P1S6","P1S7","P1S8","P1S9","P1S10"]
[null,null,null,"tarea46","glb.",null,0]
[null,null,null,"tarea47","glb.",77.099999999999994,7.0090909090909088,1.85,null,null,null,null,null,null,null,null,null,null,null,null,null,null,null,null,null,null,null,null,null,null,null,null,null,null,null,null,null,null,null,null,null,null,null,null,null,null,null,null,null,null,null,null,null,null,null,null,null,null,null,null,null,null,null,null,null,null,null,null,null,null,null,null,null,null,null,null,null,null,"P1S1","P1S2","P1S3","P1S4","P1S5","P1S6",null,"P1S7","P1S8","P1S9","P1S10","P1S11","P1S12",null,"P1S13"]
[null,null,null,"tarea48","glb.",951.79,86.526363636363627,0.9,null,null,null,null,null,null,null,null,null,null,null,null,null,null,null,null,null,null,null,null,null,null,null,null,null,null,null,null,null,null,null,null,null,null,null,null,null,null,null,null,null,null,null,null,null,null,null,null,null,null,null,null,null,null,null,null,null,null,null,null,null,null,null,null,null,null,null,null,null,null,null,null,null,"P1S1","P1S2","P1S3",null,"P1S4","P1S5","P1S6","P1S7","P1S8","P1S9",null,"P1S10","P1S11","P1S12","P1S13"]
[null,null,null,"tarea49","glb.",368.97,33.542727272727276,0.6,null,null,null,null,null,null,null,null,null,null,null,null,null,null,null,null,null,null,null,null,null,null,null,null,null,null,null,null,null,null,null,null,null,null,null,null,null,null,null,null,null,null,null,null,null,null,null,null,null,null,null,null,null,null,null,null,null,null,null,null,null,null,null,null,null,null,null,null,null,null,null,null,null,"P1S1","P1S2","P1S3",null,"P1S4","P1S5","P1S6","P1S7","P1S8","P1S9",null,"P1S10","P1S11","P1S12","P1S13"]
[null,null,null,"tarea50","glb.",96.33,24.0825,2,null,null,null,null,null,null,null,null,null,null,null,null,null,null,null,null,null,null,null,null,null,null,null,null,null,null,null,null,null,null,null,null,null,null,null,null,null,null,null,null,null,null,null,null,null,null,null,null,null,null,null,null,null,null,null,null,null,null,null,null,null,null,null,null,null,null,null,null,null,null,null,null,null,null,null,null,null,null,null,null,null,null,null,null,"P1S1","P1S1","P1S2","P1S2"]
[null,null,null,"tarea51","glb.",4582.2169749999994,416.5651795454545,0.75,null,null,null,null,null,null,null,null,null,null,null,null,null,null,null,null,null,null,null,null,null,null,null,null,null,null,null,null,null,null,null,null,null,null,null,null,null,null,null,null,null,null,null,null,null,null,null,null,null,null,null,null,null,null,null,null,null,null,null,null,null,null,null,null,null,null,null,null,null,null,null,null,null,"P1S1","P1S2","P1S3",null,"P1S4","P1S5","P1S6","P1S7","P1S8","P1S9",null,"P1S10","P1S11","P1S12","P1S13"]
[null,null,null,"tarea52","glb.",259.32249999999999,86.44083333333333,1.2,null,null,null,null,null,null,null,null,null,null,null,null,null,null,null,null,null,null,null,null,null,null,null,null,null,null,null,null,null,null,null,null,null,null,null,null,null,null,null,null,null,null,null,null,null,null,null,null,null,null,null,null,null,null,null,null,null,null,null,null,null,null,null,null,null,null,null,null,null,null,null,null,null,null,null,null,null,null,null,null,null,null,null,null,"P1S1","P1S2","P1S3"]
[null,null,null,"tarea53","glb.",3526.04,352.60399999999998,0.3,null,null,null,null,null,null,null,null,null,null,null,null,null,null,null,null,null,null,null,null,null,null,null,null,null,null,null,null,null,null,null,null,null,null,null,null,null,null,null,null,null,null,null,null,null,null,null,null,null,null,null,null,null,null,null,null,null,null,null,null,null,null,null,null,null,null,null,null,null,null,null,null,null,null,null,null,null,null,"P1S1","P1S2","P1S3","P1S4","P1S5",null,"P1S6","P1S7","P1S8","P1S9","P1S10","P1S11",null,"P1S12","P1S13"]
[null,null,null,"tarea54","glb.",173.28,17.327999999999999,1.5,null,null,null,null,null,null,null,null,null,null,null,null,null,null,null,null,null,null,null,null,null,null,null,null,null,null,null,null,null,null,null,null,null,null,null,null,null,null,null,null,null,null,null,null,null,null,null,null,null,null,null,null,null,null,null,null,null,null,null,null,null,null,null,null,null,null,null,null,null,null,null,null,null,null,null,null,null,null,null,null,null,"P1S1","P1S2",null,"P1S3","P1S4","P1S5","P1S6","P1S7","P1S8",null,"P1S9","P1S10","P1S11",null,"P1S12","P1S13"]
[null,null,null,"tarea55","glb.",240.76,24.076000000000001,0.6,null,null,null,null,null,null,null,null,null,null,null,null,null,null,null,null,null,null,null,null,null,null,null,null,null,null,null,null,null,null,null,null,null,null,null,null,null,null,null,null,null,null,null,null,null,null,null,null,null,null,null,null,null,null,null,null,null,null,null,null,null,null,null,null,null,null,null,null,null,null,null,null,null,null,null,null,null,null,null,null,null,null,null,null,null,"P1S1","P1S2","P1S3","P1S4","P1S5",null,"P1S6","P1S7","P1S8",null,"P1S9","P1S10",null,"P1S11","P1S12","P1S13"]
[null,null,null,"tarea56","glb.",433.02,36.085000000000001,1.5,null,null,null,null,null,null,null,null,null,null,null,null,null,null,null,null,null,null,null,null,null,null,null,null,null,null,null,null,null,null,null,null,null,null,null,null,null,null,null,null,null,null,null,null,null,null,null,null,null,null,null,null,null,null,null,null,null,null,null,null,null,null,null,null,null,null,null,null,null,null,null,null,null,null,null,null,null,null,null,null,null,null,null,null,null,null,null,null,null,null,null,null,"P1S1","P1S2",null,"P1S3","P1S4",null,"P1S5","P1S6","P1S7","P1S8","P1S9","P1S10",null,"P1S11","P1S12","P1S13"]
[null,null,null,"tarea57","glb.",498.05,41.50416666666667,0.65,null,null,null,null,null,null,null,null,null,null,null,null,null,null,null,null,null,null,null,null,null,null,null,null,null,null,null,null,null,null,null,null,null,null,null,null,null,null,null,null,null,null,null,null,null,null,null,null,null,null,null,null,null,null,null,null,null,null,null,null,null,null,null,null,null,null,null,null,null,null,null,null,null,null,null,null,null,null,null,null,null,null,null,null,null,null,null,null,null,null,null,null,null,null,null,"P1S1","P1S2",null,"P1S3","P1S4","P1S5","P1S6","P1S7","P1S8",null,"P1S9","P1S10","P1S11","P1S12","P1S13"]
[null,null,null,"tarea58","glb.",584.85,53.168181818181822,0.2,null,null,null,null,null,null,null,null,null,null,null,null,null,null,null,null,null,null,null,null,null,null,null,null,null,null,null,null,null,null,null,null,null,null,null,null,null,null,null,null,null,null,null,null,null,null,null,null,null,null,null,null,null,null,null,null,null,null,null,null,null,null,null,null,null,null,null,null,null,null,null,null,null,null,null,null,null,null,null,null,null,null,null,null,null,null,null,null,null,null,null,null,null,null,null,null,null,null,null,null,null,null,null,"P1S1",null,"P1S2","P1S3","P1S4","P1S5","P1S6","P1S7",null,"P1S8","P1S9","P1S10","P1S11","P1S12","P1S13",null,"P1S14"]
[null,null,null,"tarea59","glb.",null,0]
[null,null,null,"tarea60","glb.",1,9.5,3,null,null,null,null,null,null,null,null,null,null,null,null,null,null,null,null,null,null,null,null,null,null,null,null,null,null,null,null,null,null,null,null,null,null,null,null,null,null,null,null,null,null,null,null,null,null,null,null,null,null,null,null,null,null,null,null,null,null,null,null,null,null,null,null,null,null,null,null,null,null,null,null,null,null,null,null,null,null,null,null,null,null,null,null,null,"P1S1","P1S2","P1S3","P1S4","P1S5",null,"P1S6","P1S7","P1S8",null,"P1S9","P1S10",null,"P1S11"]
[null,null,null,"tarea61","glb.",1,9.5,4,null,null,null,null,null,null,null,null,null,null,null,null,null,null,null,null,null,null,null,null,null,null,null,null,null,null,null,null,null,null,null,null,null,null,null,null,null,null,null,null,null,null,null,null,null,null,null,null,null,null,null,null,null,null,null,null,null,null,null,null,null,null,null,null,null,null,null,null,null,null,null,null,null,null,null,null,null,null,null,null,null,null,null,null,null,null,"P1S1","P1S2","P1S3","P1S4",null,"P1S5","P1S6","P1S7",null,"P1S8","P1S9",null,"P1S10","P1S11"]
[null,null,null,"tarea62","glb.",1,9.5,4,null,null,null,null,null,null,null,null,null,null,null,null,null,null,null,null,null,null,null,null,null,null,null,null,null,null,null,null,null,null,null,null,null,null,null,null,null,null,null,null,null,null,null,null,null,null,null,null,null,null,null,null,null,null,null,null,null,null,null,null,null,null,null,null,null,null,null,null,null,null,null,null,null,null,null,null,null,null,null,null,null,null,null,null,null,null,null,"P1S1","P1S2","P1S3",null,"P1S4","P1S5","P1S6",null,"P1S7","P1S8",null,"P1S9","P1S10","P1S11"]
[null,null,null,"tarea63","glb.",1,9.5,4,null,null,null,null,null,null,null,null,null,null,null,null,null,null,null,null,null,null,null,null,null,null,null,null,null,null,null,null,null,null,null,null,null,null,null,null,null,null,null,null,null,null,null,null,null,null,null,null,null,null,null,null,null,null,null,null,null,null,null,null,null,null,null,null,null,null,null,null,null,null,null,null,null,null,null,null,null,null,null,null,null,null,null,null,null,null,null,null,null,null,null,null,null,null,null,null,null,null,null,null,"P1S1","P1S2","P1S3","P1S4",null,"P1S5","P1S6","P2S1","P2S2","P2S3","P2S4",null,"P2S5","P2S6","P2S7"]
[null,null,null,"tarea64","glb.",null,0]
[null,null,null,"tarea65","glb.",1,9.5,4,null,null,null,null,null,null,null,null,null,null,null,null,null,null,null,null,null,null,null,null,null,null,null,null,null,null,null,null,null,null,null,null,null,null,null,null,null,null,null,null,null,null,null,null,null,null,null,null,null,null,null,null,null,null,null,null,null,null,null,null,null,null,null,null,null,null,null,null,null,null,null,null,null,null,null,null,null,null,null,null,null,null,null,null,null,"P1S1","P1S2","P1S3","P1S4","P1S5",null,"P1S6","P1S7","P1S8",null,"P1S9","P1S10",null,"P1S11"]
[null,null,null,"tarea66","glb.",1,9.5,4,null,null,null,null,null,null,null,null,null,null,null,null,null,null,null,null,null,null,null,null,null,null,null,null,null,null,null,null,null,null,null,null,null,null,null,null,null,null,null,null,null,null,null,null,null,null,null,null,null,null,null,null,null,null,null,null,null,null,null,null,null,null,null,null,null,null,null,null,null,null,null,null,null,null,null,null,null,null,null,null,null,null,null,null,null,null,"P1S1","P1S2","P1S3","P1S4",null,"P1S5","P1S6","P1S7",null,"P1S8","P1S9",null,"P1S10","P1S11"]
[null,null,null,"tarea67","glb.",1,9.5,4,null,null,null,null,null,null,null,null,null,null,null,null,null,null,null,null,null,null,null,null,null,null,null,null,null,null,null,null,null,null,null,null,null,null,null,null,null,null,null,null,null,null,null,null,null,null,null,null,null,null,null,null,null,null,null,null,null,null,null,null,null,null,null,null,null,null,null,null,null,null,null,null,null,null,null,null,null,null,null,null,null,null,null,null,null,null,null,"P1S1","P1S2","P1S3",null,"P1S4","P1S5","P1S6",null,"P1S7","P1S8",null,"P1S9","P1S10","P1S11"]
[null,null,null,"tarea68","glb.",1,9.5,4,null,null,null,null,null,null,null,null,null,null,null,null,null,null,null,null,null,null,null,null,null,null,null,null,null,null,null,null,null,null,null,null,null,null,null,null,null,null,null,null,null,null,null,null,null,null,null,null,null,null,null,null,null,null,null,null,null,null,null,null,null,null,null,null,null,null,null,null,null,null,null,null,null,null,null,null,null,null,null,null,null,null,null,null,null,null,null,null,null,null,null,null,null,null,null,null,null,null,null,null,"P1S1","P1S2","P1S3","P1S4",null,"P1S5","P1S6","P2S1","P2S2","P2S3","P2S4",null,"P2S5","P2S6","P2S7"]

{"sheet":"RecursosMO, despues","index":1,"n_rows":79,"n_cols":162,"rows_kept":79,"cut":false,"hidden":false,"merged":[[6,95,6,125],[6,126,6,133],[8,8,8,14],[8,15,8,21],[8,22,8,28],[8,29,8,35],[8,36,8,42],[8,64,8,70],[8,71,8,77],[8,78,8,84],[6,8,6,33],[6,34,6,64],[6,65,6,94],[8,127,8,133],[9,1,10,1],[9,2,10,2],[9,3,10,3],[9,4,10,4],[9,5,10,5],[9,6,10,6],[8,85,8,91],[8,92,8,98],[8,99,8,105],[8,106,8,112],[8,113,8,119],[8,120,8,126],[8,43,8,49],[8,50,8,56],[8,57,8,63]]}
[]
[null,"Al ejecutar la macro, no grafica los datos de las celdas I8 y I12 como deberian de ser como una sola grafica, sino los grafica de manera separada"]
[]
[]
[]
[]
[null,null,null,null,null,null,null,"Horario","JULIO",null,null,null,null,null,null,null,null,null,null,null,null,null,null,null,null,null,null,null,null,null,null,null,null,null,"AGOSTO",null,null,null,null,null,null,null,null,null,null,null,null,null,null,null,null,null,null,null,null,null,null,null,null,null,null,null,null,null,null,"SETIEMBRE",null,null,null,null,null,null,null,null,null,null,null,null,null,null,null,null,null,null,null,null,null,null,null,null,null,null,null,null,null,"OCTUBRE",null,null,null,null,null,null,null,null,null,null,null,null,null,null,null,null,null,null,null,null,null,null,null,null,null,null,null,null,null,null,"NOVIEMBRE"]
[null,null,null,null,null,null,null,9.5,1,2,3,4,5,6,7,8,9,10,11,12,13,14,15,16,17,18,19,20,21,22,23,24,25,26,27,28,29,30,31,32,33,34,35,36,37,38,39,40,41,42,43,44,45,46,47,48,49,50,51,52,53,54,55,56,57,58,59,60,61,62,63,64,65,66,67,68,69,70,71,72,73,74,75,76,77,78,79,80,81,82,83,84,85,86,87,88,89,90,91,92,93,94,95,96,97,98,99,100,101,102,103,104,105,106,107,108,109,110,111,112,113,114,115,116,117,118,119,120,121,122,123,124,125,126]
[null,null,null,null,null,null,null,null,"Semana Nº 1",null,null,null,null,null,null,"Semana Nº 2",null,null,null,null,null,null,"Semana Nº 3",null,null,null,null,null,null,"Semana Nº 4",null,null,null,null,null,null,"Semana Nº 5",null,null,null,null,null,null,"Semana Nº 6",null,null,null,null,null,null,"Semana Nº 7",null,null,null,null,null,null,"Semana Nº 8",null,null,null,null,null,null,"Semana Nº 9",null,null,null,null,null,null,"Semana Nº 10",null,null,null,null,null,null,"Semana Nº 11",null,null,null,null,null,null,"Semana Nº 12",null,null,null,null,null,null,"Semana Nº 13",null,null,null,null,null,null,"Semana Nº 14",null,null,null,null,null,null,"Semana Nº 15",null,null,null,null,null,null,"Semana Nº 16",null,null,null,null,null,null,"Semana Nº 17",null,null,null,null,null,null,"Semana Nº 18"]
[null,"FASE O PLAN","ETAPA","ACTIVIDADES","und","Metrado Piso Tipico","Metrado por Sector","Ratio","L","M","X","J","V","S","D","L","M","X","J","V","S","D","L","M","X","J","V","S","D","L","M","X","J","V","S","D","L","M","X","J","V","S","D","L","M","X","J","V","S","D","L","M","X","J","V","S","D","L","M","X","J","V","S","D","L","M","X","J","V","S","D","L","M","X","J","V","S","D","L","M","X","J","V","S","D","L","M","X","J","V","S","D","L","M","X","J","V","S","D","L","M","X","J","V","S","D","L","M","X","J","V","S","D","L","M","X","J","V","S","D","L","M","X","J","V","S","D","L","M","X","J","V","S","D"]
[null,null,null,null,null,null,null,"Productividad","2020-07-06","2020-07-07","2020-07-08","2020-07-09","2020-07-10","2020-07-11","2020-07-12","2020-07-13","2020-07-14","2020-07-15","2020-07-16","2020-07-17","2020-07-18","2020-07-19","2020-07-20","2020-07-21","2020-07-22","2020-07-23","2020-07-24","2020-07-25","2020-07-26","2020-07-27","2020-07-28","2020-07-29","2020-07-30","2020-07-31","2020-08-01","2020-08-02","2020-08-03","2020-08-04","2020-08-05","2020-08-06","2020-08-07","2020-08-08","2020-08-09","2020-08-10","2020-08-11","2020-08-12","2020-08-13","2020-08-14","2020-08-15","2020-08-16","2020-08-17","2020-08-18","2020-08-19","2020-08-20","2020-08-21","2020-08-22","2020-08-23","2020-08-24","2020-08-25","2020-08-26","2020-08-27","2020-08-28","2020-08-29","2020-08-30","2020-08-31","2020-09-01","2020-09-02","2020-09-03","2020-09-04","2020-09-05","2020-09-06","2020-09-07","2020-09-08","2020-09-09","2020-09-10","2020-09-11","2020-09-12","2020-09-13","2020-09-14","2020-09-15","2020-09-16","2020-09-17","2020-09-18","2020-09-19","2020-09-20","2020-09-21","2020-09-22","2020-09-23","2020-09-24","2020-09-25","2020-09-26","2020-09-27","2020-09-28","2020-09-29","2020-09-30","2020-10-01","2020-10-02","2020-10-03","2020-10-04","2020-10-05","2020-10-06","2020-10-07","2020-10-08","2020-10-09","2020-10-10","2020-10-11","2020-10-12","2020-10-13","2020-10-14","2020-10-15","2020-10-16","2020-10-17","2020-10-18","2020-10-19","2020-10-20","2020-10-21","2020-10-22","2020-10-23","2020-10-24","2020-10-25","2020-10-26","2020-10-27","2020-10-28","2020-10-29","2020-10-30","2020-10-31","2020-11-01","2020-11-02","2020-11-03","2020-11-04","2020-11-05","2020-11-06","2020-11-07","2020-11-08"]
[null,null,null,"tarea1","glb.",null,null,"Total M.O",2,2,2,2,2,2,0,10,12,14,16,16,16,0,9.4256825071770329,5.4256825071770329,3.4256825071770325,1.4256825071770325,1.4256825071770325,1.4256825071770325,0,7.6380030813397219,0,0,9.9669662392344573,12.23186794258374,18.02223277511963,0,30.14831739280384,68.582738005842131,68.582738005842131,68.582738005842131,62.370417431679442,60.041454273784709,0,63.722748053689024,60.707937747468925,53.069078369019167,14.634657755980871,23.341675637090908,31.815323943311014,0,38.867339753587707,46.058612194066164,67.205272169102628,80.168310584863377,83.681085345628929,83.681085345628929,0,96.976927709605675,86.681085345628929,96.976927709605675,77.974067464518882,79.796261522275529,69.500419158298783,0,79.796261522275529,69.500419158298783,79.796261522275529,69.500419158298783,79.796261522275529,71.500419158298783,0,81.796261522275529,71.500419158298783,81.796261522275529,71.500419158298783,74.744245711998829,57.257130907543626,0,40.18937457730835,14.15493927125506,16.450781635231806,42.710856123481797,42.710856123481797,42.710856123481797,0,48.494436502429167,57.66115743360325,60.103157433603251,60.103157433603251,62.207772818218643,62.207772818218643,0,78.196614923481789,82.211359862753042,90.211359862753042,87.292517757489904,39.883020526315789,39.281578947368416,0,36.839578947368423,42.098931174089074,31.533651821862357,0,34.154967611336048,34.154967611336048,0,32.050352226720655,25.050352226720655,25.050352226720655,15.88066801619434,15.88066801619434,16.760141700404866,0,16.760141700404866,16.760141700404866,16.760141700404866,11.500789473684213,11.500789473684213,8.8794736842105273,0,8.8794736842105273,8.8794736842105273,8.8794736842105273,0.8794736842105263,0.8794736842105263,0.8794736842105263,0,0.8794736842105263,0,0,0,0,0,0,0,0,0,0,0,0,0,0,0,0,0,0,0,0,0,0,0,0,0,0,0,0,0,0,0,0,0,0]
[null,null,null,"tarea2","glb.",1,9.5,2,2,2,2,2,2,2,null,2]
[null,null,null,"tarea3","glb."]
[null,null,null,"tarea4","glb.",1,9.5,4,null,null,null,null,null,null,null,4,4,4,4,4,4]
[null,null,null,"tarea5","glb.",1,9.5,4,null,null,null,null,null,null,null,4,4,4,4,4,4]
[null,null,null,"tarea6","glb.",1,9.5,4,null,null,null,null,null,null,null,null,4,4,4,4,4,null,4]
[null,null,null,"tarea7","glb.",1,9.5,2,null,null,null,null,null,null,null,null,null,2,2,2,2,null,2,2]
[null,null,null,"tarea8","glb.",1,9.5,2,null,null,null,null,null,null,null,null,null,null,2,2,2,null,2,2,2]
[null,null,null,"tarea9","glb.",1,9.5,2,null,null,null,null,null,null,null,null,null,null,null,null,null,null,null,null,null,null,null,null,null,null,null,null,null,null,null,null,null,null,null,null,null,null,null,null,null,null,null,null,null,null,null,null,null,null,null,null,null,null,null,null,null,null,null,null,null,null,null,null,null,2,null,2,2,2,2,2,2,null,2,2,2,2,2,2,null,2,2,2,2,2,2,null,2,2,2,2,2,2,null,2,2]
[null,null,null,"tarea10","glb.",1,9.5,3,null,null,null,null,null,null,null,null,null,null,null,null,null,null,null,null,null,null,null,null,null,null,null,null,null,null,null,null,null,null,null,null,null,null,null,null,null,null,null,null,null,null,null,null,null,null,null,null,null,3,3,3,3,3,3,null,3,3,3,3,3,3,null,3,3,3,3,3,3,null,3,3,3,3,3,3,null,3,3,3,3,3,3,null,3]
[null,null,null,"tarea11","glb."]
[null,null,null,"tarea12","glb.",736.63200000000006,{"$f":"+F23/8","v":92.079000000000008},0.14709090909090908,null,null,null,null,null,null,null,null,null,null,null,null,null,null,1.4256825071770325,1.4256825071770325,1.4256825071770325,1.4256825071770325,1.4256825071770325,1.4256825071770325,null,1.4256825071770325,null,null,1.4256825071770325]
[null,null,null,"tarea13","glb.",221,{"$f":"+F24/8","v":27.625},2.1363636363636362,null,null,null,null,null,null,null,null,null,null,null,null,null,null,null,null,null,null,null,null,null,6.212320574162689,null,null,6.212320574162689,6.212320574162689,6.212320574162689,null,6.212320574162689,6.212320574162689,6.212320574162689,6.212320574162689]
[null,null,null,"tarea14","glb."]
[null,null,null,"tarea15","glb.",270.41849999999999,{"$f":"+F26/8","v":33.802312499999999},0.65454545454545443,null,null,null,null,null,null,null,null,null,null,null,null,null,null,null,null,null,null,null,null,null,null,null,null,2.328963157894735,2.328963157894735,2.328963157894735,null,2.328963157894735,2.328963157894735,2.328963157894735,2.328963157894735,2.328963157894735]
[null,null,null,"tarea16","glb.",6678.2,{"$f":"+F27/8","v":834.77499999999998},4.2000000000000003E-2,null,null,null,null,null,null,null,null,null,null,null,null,null,null,null,null,null,null,null,null,null,null,null,null,null,3.6905842105263158,3.6905842105263158,null,3.6905842105263158,3.6905842105263158,3.6905842105263158,3.6905842105263158,3.6905842105263158,3.6905842105263158]
[null,null,null,"tarea17","glb.",171.02,21.377500000000001,1.9090909090909089,null,null,null,null,null,null,null,null,null,null,null,null,null,null,null,null,null,null,null,null,null,null,null,null,null,null,4.2959569377990459,null,4.2959569377990459,4.2959569377990459,4.2959569377990459,4.2959569377990459,4.2959569377990459,4.2959569377990459,null,4.2959569377990459]
[null,null,null,"tarea18","glb.",162.25,20.28125,0.7,null,null,null,null,null,null,null,null,null,null,null,null,null,null,null,null,null,null,null,null,null,null,null,null,null,null,1.494407894736842,null,1.494407894736842,1.494407894736842,1.494407894736842,1.494407894736842,1.494407894736842,1.494407894736842,null,1.494407894736842]
[null,null,null,"tarea19","glb.",21942.438832,2742.804854,4.2000000000000003E-2,null,null,null,null,null,null,null,null,null,null,null,null,null,null,null,null,null,null,null,null,null,null,null,null,null,null,null,null,12.126084617684212,12.126084617684212,12.126084617684212,12.126084617684212,12.126084617684212,12.126084617684212,null,12.126084617684212,12.126084617684212]
[null,null,null,"tarea20","glb.",1463.001,182.875125,1.9090909090909089,null,null,null,null,null,null,null,null,null,null,null,null,null,null,null,null,null,null,null,null,null,null,null,null,null,null,null,null,null,36.750025119617241,36.750025119617241,36.750025119617241,36.750025119617241,36.750025119617241,null,36.750025119617241,36.750025119617241,36.750025119617241]
[null,null,null,"tarea21","glb.",182.87722500000001,22.859653125000001,0.7,null,null,null,null,null,null,null,null,null,null,null,null,null,null,null,null,null,null,null,null,null,null,null,null,null,null,null,null,null,1.6843954934210525,1.6843954934210525,1.6843954934210525,1.6843954934210525,1.6843954934210525,null,1.6843954934210525,1.6843954934210525,1.6843954934210525]
[null,null,null,"tarea22","glb.",null,0]
[null,null,null,"tarea23","glb.",200,{"$f":"+F34/8","v":25},2.1363636363636362,null,null,null,null,null,null,null,null,null,null,null,null,null,null,null,null,null,null,null,null,null,null,null,null,null,null,null,null,null,null,null,null,null,null,null,5.6220095693779992,5.6220095693779992,5.6220095693779992,5.6220095693779992,5.6220095693779992,5.6220095693779992,null,5.6220095693779992,5.6220095693779992]
[null,null,null,"tarea24","glb.",132.98999999999998,16.623749999999998,1,null,null,null,null,null,null,null,null,null,null,null,null,null,null,null,null,null,null,null,null,null,null,null,null,null,null,null,null,null,null,null,null,null,null,null,1.7498684210526316,1.7498684210526316,1.7498684210526316,1.7498684210526316,1.7498684210526316,1.7498684210526316,null,1.7498684210526316,1.7498684210526316]
[null,null,null,"tarea25","glb.",5022.4320000000007,627.80400000000009,4.2000000000000003E-2,null,null,null,null,null,null,null,null,null,null,null,null,null,null,null,null,null,null,null,null,null,null,null,null,null,null,null,null,null,null,null,null,null,null,null,null,2.7755545263157897,2.7755545263157897,2.7755545263157897,2.7755545263157897,2.7755545263157897,null,2.7755545263157897,2.7755545263157897,2.7755545263157897]
[null,null,null,"tarea26","glb.",346.44999999999993,43.306249999999991,0.76363636363636356,null,null,null,null,null,null,null,null,null,null,null,null,null,null,null,null,null,null,null,null,null,null,null,null,null,null,null,null,null,null,null,null,null,null,null,null,null,3.4810765550239249,3.4810765550239249,3.4810765550239249,3.4810765550239249,null,3.4810765550239249,3.4810765550239249,3.4810765550239249,3.4810765550239249]
[null,null,null,"tarea27","glb.",109.23899999999999,13.654874999999999,0.7,null,null,null,null,null,null,null,null,null,null,null,null,null,null,null,null,null,null,null,null,null,null,null,null,null,null,null,null,null,null,null,null,null,null,null,null,null,1.0061486842105263,1.0061486842105263,1.0061486842105263,1.0061486842105263,null,1.0061486842105263,1.0061486842105263,1.0061486842105263,1.0061486842105263]
[null,null,null,"tarea28","glb.",null,{"$f":"+F39/8","v":0},0.90434782608695663,null,null,null,null,null,null,null,null,null,null,null,null,null,null,null,null,null,null,null,null,null,null,null,null,null,null,null,null,null,null,null,null,null,null,null,null,null,null,0,0,0,null,0,0,0,0,0]
[null,null,null,"tarea29","glb."]
[null,null,null,"tarea30","glb.",21663.889727999998,{"$f":"+F41/11","v":1969.4445207272727},4.2000000000000003E-2,null,null,null,null,null,null,null,null,null,null,null,null,null,null,null,null,null,null,null,null,null,null,null,null,null,null,null,null,null,null,null,null,null,null,null,null,null,null,null,8.7070178811100369,8.7070178811100369,null,8.7070178811100369,8.7070178811100369,8.7070178811100369,8.7070178811100369,8.7070178811100369,8.7070178811100369,null,8.7070178811100369,8.7070178811100369,8.7070178811100369]
[null,null,null,"tarea31","glb.",442.26000000000005,{"$f":"+F42/11","v":40.20545454545455},1.7500000000000002,null,null,null,null,null,null,null,null,null,null,null,null,null,null,null,null,null,null,null,null,null,null,null,null,null,null,null,null,null,null,null,null,null,null,null,null,null,null,null,null,7.4062679425837423,null,7.4062679425837423,7.4062679425837423,7.4062679425837423,7.4062679425837423,7.4062679425837423,7.4062679425837423,null,7.4062679425837423,7.4062679425837423,7.4062679425837423,7.4062679425837423]
[null,null,null,"tarea32","glb.",62.244000000000007,5.6585454545454548,1.7920000000000003,null,null,null,null,null,null,null,null,null,null,null,null,null,null,null,null,null,null,null,null,null,null,null,null,null,null,null,null,null,null,null,null,null,null,null,null,null,null,null,null,1.0673803636363628,null,1.0673803636363628,1.0673803636363628,1.0673803636363628,1.0673803636363628,1.0673803636363628,1.0673803636363628,null,1.0673803636363628,1.0673803636363628,1.0673803636363628,1.0673803636363628]
[null,null,null,"tarea33","glb.",null,0]
[null,null,null,"tarea34","glb.",941.64000000000021,{"$f":"+F45/22","v":42.801818181818192},1.5652173913043479,null,null,null,null,null,null,null,null,null,null,null,null,null,null,null,null,null,null,null,null,null,null,null,null,null,null,null,null,null,null,null,null,null,null,null,null,null,null,null,null,null,null,7.0520158102766919,7.0520158102766919,7.0520158102766919,7.0520158102766919,7.0520158102766919,7.0520158102766919,null,7.0520158102766919,7.0520158102766919,7.0520158102766919,7.0520158102766919,7.0520158102766919,7.0520158102766919,null,7.0520158102766919,7.0520158102766919,7.0520158102766919,7.0520158102766919,7.0520158102766919,7.0520158102766919,null,7.0520158102766919,7.0520158102766919,7.0520158102766919,7.0520158102766919]
[null,null,null,"tarea35","glb.",35785.141429999996,{"$f":"+F46/22","v":1626.5973377272726},4.2000000000000003E-2,null,null,null,null,null,null,null,null,null,null,null,null,null,null,null,null,null,null,null,null,null,null,null,null,null,null,null,null,null,null,null,null,null,null,null,null,null,null,null,null,null,null,null,7.1912724404784578,7.1912724404784578,7.1912724404784578,7.1912724404784578,7.1912724404784578,null,7.1912724404784578,7.1912724404784578,7.1912724404784578,7.1912724404784578,7.1912724404784578,7.1912724404784578,null,7.1912724404784578,7.1912724404784578,7.1912724404784578,7.1912724404784578,7.1912724404784578,7.1912724404784578,null,7.1912724404784578,7.1912724404784578,7.1912724404784578,7.1912724404784578,7.1912724404784578]
[null,null,null,"tarea36","glb.",3808.0170000000003,173.09168181818183,1.5652173913043479,null,null,null,null,null,null,null,null,null,null,null,null,null,null,null,null,null,null,null,null,null,null,null,null,null,null,null,null,null,null,null,null,null,null,null,null,null,null,null,null,null,null,null,null,28.518537965467093,28.518537965467093,28.518537965467093,28.518537965467093,null,28.518537965467093,28.518537965467093,28.518537965467093,28.518537965467093,28.518537965467093,28.518537965467093,null,28.518537965467093,28.518537965467093,28.518537965467093,28.518537965467093,28.518537965467093,28.518537965467093,null,28.518537965467093,28.518537965467093,28.518537965467093,28.518537965467093,28.518537965467093,28.518537965467093]
[null,null,null,"tarea37","glb.",78318.236306999985,3559.9198321363629,4.2000000000000003E-2,null,null,null,null,null,null,null,null,null,null,null,null,null,null,null,null,null,null,null,null,null,null,null,null,null,null,null,null,null,null,null,null,null,null,null,null,null,null,null,null,null,null,null,null,null,15.73859294207654,15.73859294207654,15.73859294207654,null,15.73859294207654,15.73859294207654,15.73859294207654,15.73859294207654,15.73859294207654,15.73859294207654,null,15.73859294207654,15.73859294207654,15.73859294207654,15.73859294207654,15.73859294207654,15.73859294207654,null,15.73859294207654,15.73859294207654,15.73859294207654,15.73859294207654,15.73859294207654,15.73859294207654,null,15.73859294207654]
[null,null,null,"tarea38","glb.",1,9.5,4,null,null,null,null,null,null,null,null,null,null,null,null,null,null,null,null,null,null,null,null,null,null,null,null,null,null,null,null,null,null,null,null,null,null,null,null,null,null,null,null,null,null,null,null,null,null,4,4,null,4,4,4,4,4,4,null,4,4,4,4,4,4,null,4,4,4,4,4,4,null,4,4]
[null,null,null,"tarea39","glb.",1,9.5,4,null,null,null,null,null,null,null,null,null,null,null,null,null,null,null,null,null,null,null,null,null,null,null,null,null,null,null,null,null,null,null,null,null,null,null,null,null,null,null,null,null,null,null,null,null,null,4,4,null,4,4,4,4,4,4,null,4,4,4,4,4,4,null,4,4,4,4,4,4,null,4,4]
[null,null,null,"tarea40","glb.",625.78694999999982,{"$f":"+F51/11","v":56.889722727272712},1.2695652173913043,null,null,null,null,null,null,null,null,null,null,null,null,null,null,null,null,null,null,null,null,null,null,null,null,null,null,null,null,null,null,null,null,null,null,null,null,null,null,null,null,null,null,null,null,null,null,null,null,null,7.602654021219025,null,7.602654021219025,null,7.602654021219025,null,null,7.602654021219025,null,7.602654021219025,null,7.602654021219025,null,null,7.602654021219025,null,7.602654021219025,null,7.602654021219025,null,null,7.602654021219025,null,7.602654021219025]
[null,null,null,"tarea41","glb.",442.26000000000005,{"$f":"+F52/11","v":40.20545454545455},0.63636363636363624,null,null,null,null,null,null,null,null,null,null,null,null,null,null,null,null,null,null,null,null,null,null,null,null,null,null,null,null,null,null,null,null,null,null,null,null,null,null,null,null,null,null,null,null,null,null,null,null,null,2.6931883427577228,null,2.6931883427577228,null,2.6931883427577228,null,null,2.6931883427577228,null,2.6931883427577228,null,2.6931883427577228,null,null,2.6931883427577228,null,2.6931883427577228,null,2.6931883427577228,null,null,2.6931883427577228,null,2.6931883427577228]
[null,null,null,"tarea42","glb."]
[null,null,null,"tarea43","glb.",13081.908000000001,{"$f":"+F54/10","v":1308.1908000000001},4.2000000000000003E-2,null,null,null,null,null,null,null,null,null,null,null,null,null,null,null,null,null,null,null,null,null,null,null,null,null,null,null,null,null,null,null,null,null,null,null,null,null,null,null,null,null,null,null,null,null,null,null,null,null,null,null,null,null,null,null,null,null,null,null,null,null,null,null,null,null,null,null,null,null,null,null,null,null,null,null,null,null,5.7835803789473692,5.7835803789473692,5.7835803789473692,5.7835803789473692,5.7835803789473692,5.7835803789473692,null,5.7835803789473692,5.7835803789473692,5.7835803789473692,5.7835803789473692]
[null,null,null,"tarea44","glb.",87.902999999999992,{"$f":"+F55/10","v":8.7902999999999984},0.65,null,null,null,null,null,null,null,null,null,null,null,null,null,null,null,null,null,null,null,null,null,null,null,null,null,null,null,null,null,null,null,null,null,null,null,null,null,null,null,null,null,null,null,null,null,null,null,null,null,null,null,null,null,null,null,null,null,null,null,null,null,null,null,null,null,null,null,null,null,null,null,null,null,null,null,null,null,null,0.60144157894736849,0.60144157894736849,0.60144157894736849,0.60144157894736849,0.60144157894736849,null,0.60144157894736849,0.60144157894736849,0.60144157894736849,0.60144157894736849,0.60144157894736849]
[null,null,null,"tarea45","glb.",231.99,23.199000000000002,1,null,null,null,null,null,null,null,null,null,null,null,null,null,null,null,null,null,null,null,null,null,null,null,null,null,null,null,null,null,null,null,null,null,null,null,null,null,null,null,null,null,null,null,null,null,null,null,null,null,null,null,null,null,null,null,null,null,null,null,null,null,null,null,null,null,null,null,null,null,null,null,null,null,null,null,null,null,null,null,2.4420000000000002,2.4420000000000002,2.4420000000000002,2.4420000000000002,null,2.4420000000000002,2.4420000000000002,2.4420000000000002,2.4420000000000002,2.4420000000000002,2.4420000000000002]
[null,null,null,"tarea46","glb."]
[null,null,null,"tarea47","glb.",77.099999999999994,{"$f":"+F58/13","v":5.9307692307692301},1.85,null,null,null,null,null,null,null,null,null,null,null,null,null,null,null,null,null,null,null,null,null,null,null,null,null,null,null,null,null,null,null,null,null,null,null,null,null,null,null,null,null,null,null,null,null,null,null,null,null,null,null,null,null,null,null,null,null,null,null,null,null,null,null,null,null,null,null,null,null,null,1.1549392712550606,1.1549392712550606,1.1549392712550606,1.1549392712550606,1.1549392712550606,1.1549392712550606,null,1.1549392712550606,1.1549392712550606,1.1549392712550606,1.1549392712550606,1.1549392712550606,1.1549392712550606,null,1.1549392712550606]
[null,null,null,"tarea48","glb.",951.79,{"$f":"+F59/13","v":73.214615384615385},0.9,null,null,null,null,null,null,null,null,null,null,null,null,null,null,null,null,null,null,null,null,null,null,null,null,null,null,null,null,null,null,null,null,null,null,null,null,null,null,null,null,null,null,null,null,null,null,null,null,null,null,null,null,null,null,null,null,null,null,null,null,null,null,null,null,null,null,null,null,null,null,null,null,null,6.9361214574898797,6.9361214574898797,6.9361214574898797,null,6.9361214574898797,6.9361214574898797,6.9361214574898797,6.9361214574898797,6.9361214574898797,6.9361214574898797,null,6.9361214574898797,6.9361214574898797,6.9361214574898797,6.9361214574898797]
[null,null,null,"tarea49","glb.",368.97,28.382307692307695,0.6,null,null,null,null,null,null,null,null,null,null,null,null,null,null,null,null,null,null,null,null,null,null,null,null,null,null,null,null,null,null,null,null,null,null,null,null,null,null,null,null,null,null,null,null,null,null,null,null,null,null,null,null,null,null,null,null,null,null,null,null,null,null,null,null,null,null,null,null,null,null,null,null,null,1.7925668016194336,1.7925668016194336,1.7925668016194336,null,1.7925668016194336,1.7925668016194336,1.7925668016194336,1.7925668016194336,1.7925668016194336,1.7925668016194336,null,1.7925668016194336,1.7925668016194336,1.7925668016194336,1.7925668016194336]
[null,null,null,"tarea50","glb.",96.33,{"$f":"+F61/4","v":24.0825},2,null,null,null,null,null,null,null,null,null,null,null,null,null,null,null,null,null,null,null,null,null,null,null,null,null,null,null,null,null,null,null,null,null,null,null,null,null,null,null,null,null,null,null,null,null,null,null,null,null,null,null,null,null,null,null,null,null,null,null,null,null,null,null,null,null,null,null,null,null,null,null,null,null,null,null,null,null,null,null,null,null,null,null,null,5.07,5.07,5.07,5.07]
[null,null,null,"tarea51","glb.",4582.2169749999994,{"$f":"+F62/13","v":352.4782288461538},0.75,null,null,null,null,null,null,null,null,null,null,null,null,null,null,null,null,null,null,null,null,null,null,null,null,null,null,null,null,null,null,null,null,null,null,null,null,null,null,null,null,null,null,null,null,null,null,null,null,null,null,null,null,null,null,null,null,null,null,null,null,null,null,null,null,null,null,null,null,null,null,null,null,null,27.827228593117422,27.827228593117422,27.827228593117422,null,27.827228593117422,27.827228593117422,27.827228593117422,27.827228593117422,27.827228593117422,27.827228593117422,null,27.827228593117422,27.827228593117422,27.827228593117422,27.827228593117422]
[null,null,null,"tarea52","glb.",259.32249999999999,{"$f":"+F63/3","v":86.44083333333333},1.2,null,null,null,null,null,null,null,null,null,null,null,null,null,null,null,null,null,null,null,null,null,null,null,null,null,null,null,null,null,null,null,null,null,null,null,null,null,null,null,null,null,null,null,null,null,null,null,null,null,null,null,null,null,null,null,null,null,null,null,null,null,null,null,null,null,null,null,null,null,null,null,null,null,null,null,null,null,null,null,null,null,null,null,null,10.918842105263154,10.918842105263154,10.918842105263154]
[null,null,null,"tarea53","glb.",3526.04,{"$f":"+F64/13","v":271.23384615384617},0.3,null,null,null,null,null,null,null,null,null,null,null,null,null,null,null,null,null,null,null,null,null,null,null,null,null,null,null,null,null,null,null,null,null,null,null,null,null,null,null,null,null,null,null,null,null,null,null,null,null,null,null,null,null,null,null,null,null,null,null,null,null,null,null,null,null,null,null,null,null,null,null,null,null,null,null,null,null,null,8.5652793522267157,8.5652793522267157,8.5652793522267157,8.5652793522267157,8.5652793522267157,null,8.5652793522267157,8.5652793522267157,8.5652793522267157,8.5652793522267157,8.5652793522267157,8.5652793522267157,null,8.5652793522267157,8.5652793522267157]
[null,null,null,"tarea54","glb.",173.28,{"$f":"+F65/13","v":13.329230769230769},1.5,null,null,null,null,null,null,null,null,null,null,null,null,null,null,null,null,null,null,null,null,null,null,null,null,null,null,null,null,null,null,null,null,null,null,null,null,null,null,null,null,null,null,null,null,null,null,null,null,null,null,null,null,null,null,null,null,null,null,null,null,null,null,null,null,null,null,null,null,null,null,null,null,null,null,null,null,null,null,null,null,null,2.1046153846153897,2.1046153846153897,null,2.1046153846153897,2.1046153846153897,2.1046153846153897,2.1046153846153897,2.1046153846153897,2.1046153846153897,null,2.1046153846153897,2.1046153846153897,2.1046153846153897,null,2.1046153846153897,2.1046153846153897]
[null,null,null,"tarea55","glb.",240.76,18.52,0.6,null,null,null,null,null,null,null,null,null,null,null,null,null,null,null,null,null,null,null,null,null,null,null,null,null,null,null,null,null,null,null,null,null,null,null,null,null,null,null,null,null,null,null,null,null,null,null,null,null,null,null,null,null,null,null,null,null,null,null,null,null,null,null,null,null,null,null,null,null,null,null,null,null,null,null,null,null,null,null,null,null,null,null,null,null,1.1696842105263157,1.1696842105263157,1.1696842105263157,1.1696842105263157,1.1696842105263157,null,1.1696842105263157,1.1696842105263157,1.1696842105263157,null,1.1696842105263157,1.1696842105263157,null,1.1696842105263157,1.1696842105263157,1.1696842105263157]
[null,null,null,"tarea56","glb.",433.02,{"$f":"+F67/13","v":33.309230769230766},1.5,null,null,null,null,null,null,null,null,null,null,null,null,null,null,null,null,null,null,null,null,null,null,null,null,null,null,null,null,null,null,null,null,null,null,null,null,null,null,null,null,null,null,null,null,null,null,null,null,null,null,null,null,null,null,null,null,null,null,null,null,null,null,null,null,null,null,null,null,null,null,null,null,null,null,null,null,null,null,null,null,null,null,null,null,null,null,null,null,null,null,null,null,5.2593522267206527,5.2593522267206527,null,5.2593522267206527,5.2593522267206527,null,5.2593522267206527,5.2593522267206527,5.2593522267206527,5.2593522267206527,5.2593522267206527,5.2593522267206527,null,5.2593522267206527,5.2593522267206527,5.2593522267206527]
[null,null,null,"tarea57","glb.",498.05,38.311538461538461,0.65,null,null,null,null,null,null,null,null,null,null,null,null,null,null,null,null,null,null,null,null,null,null,null,null,null,null,null,null,null,null,null,null,null,null,null,null,null,null,null,null,null,null,null,null,null,null,null,null,null,null,null,null,null,null,null,null,null,null,null,null,null,null,null,null,null,null,null,null,null,null,null,null,null,null,null,null,null,null,null,null,null,null,null,null,null,null,null,null,null,null,null,null,null,null,null,2.6213157894736869,2.6213157894736869,null,2.6213157894736869,2.6213157894736869,2.6213157894736869,2.6213157894736869,2.6213157894736869,2.6213157894736869,null,2.6213157894736869,2.6213157894736869,2.6213157894736869,2.6213157894736869,2.6213157894736869]
[null,null,null,"tarea58","glb.",584.85,{"$f":"+F69/14","v":41.774999999999999},0.2,null,null,null,null,null,null,null,null,null,null,null,null,null,null,null,null,null,null,null,null,null,null,null,null,null,null,null,null,null,null,null,null,null,null,null,null,null,null,null,null,null,null,null,null,null,null,null,null,null,null,null,null,null,null,null,null,null,null,null,null,null,null,null,null,null,null,null,null,null,null,null,null,null,null,null,null,null,null,null,null,null,null,null,null,null,null,null,null,null,null,null,null,null,null,null,null,null,null,null,null,null,null,null,0.8794736842105263,null,0.8794736842105263,0.8794736842105263,0.8794736842105263,0.8794736842105263,0.8794736842105263,0.8794736842105263,null,0.8794736842105263,0.8794736842105263,0.8794736842105263,0.8794736842105263,0.8794736842105263,0.8794736842105263,null,0.8794736842105263]
[null,null,null,"tarea59","glb."]
[null,null,null,"tarea60","glb.",1,9.5,3,null,null,null,null,null,null,null,null,null,null,null,null,null,null,null,null,null,null,null,null,null,null,null,null,null,null,null,null,null,null,null,null,null,null,null,null,null,null,null,null,null,null,null,null,null,null,null,null,null,null,null,null,null,null,null,null,null,null,null,null,null,null,null,null,null,null,null,null,null,null,null,null,null,null,null,null,null,null,null,null,null,null,null,null,null,3,3,3,3,3,null,3,3,3,null,3,3,null,3]
[null,null,null,"tarea61","glb.",1,9.5,4,null,null,null,null,null,null,null,null,null,null,null,null,null,null,null,null,null,null,null,null,null,null,null,null,null,null,null,null,null,null,null,null,null,null,null,null,null,null,null,null,null,null,null,null,null,null,null,null,null,null,null,null,null,null,null,null,null,null,null,null,null,null,null,null,null,null,null,null,null,null,null,null,null,null,null,null,null,null,null,null,null,null,null,null,null,null,4,4,4,4,null,4,4,4,null,4,4,null,4,4]
[null,null,null,"tarea62","glb.",1,9.5,4,null,null,null,null,null,null,null,null,null,null,null,null,null,null,null,null,null,null,null,null,null,null,null,null,null,null,null,null,null,null,null,null,null,null,null,null,null,null,null,null,null,null,null,null,null,null,null,null,null,null,null,null,null,null,null,null,null,null,null,null,null,null,null,null,null,null,null,null,null,null,null,null,null,null,null,null,null,null,null,null,null,null,null,null,null,null,null,4,4,4,null,4,4,4,null,4,4,null,4,4,4]
[null,null,null,"tarea63","glb.",1,9.5,4,null,null,null,null,null,null,null,null,null,null,null,null,null,null,null,null,null,null,null,null,null,null,null,null,null,null,null,null,null,null,null,null,null,null,null,null,null,null,null,null,null,null,null,null,null,null,null,null,null,null,null,null,null,null,null,null,null,null,null,null,null,null,null,null,null,null,null,null,null,null,null,null,null,null,null,null,null,null,null,null,null,null,null,null,null,null,null,null,null,null,null,null,null,null,null,null,null,null,null,null,4,4,4,4,null,4,4,4,4,4,4,null,4,4,4]
[null,null,null,"tarea64","glb.",null,0]
[null,null,null,"tarea65","glb.",1,9.5,4,null,null,null,null,null,null,null,null,null,null,null,null,null,null,null,null,null,null,null,null,null,null,null,null,null,null,null,null,null,null,null,null,null,null,null,null,null,null,null,null,null,null,null,null,null,null,null,null,null,null,null,null,null,null,null,null,null,null,null,null,null,null,null,null,null,null,null,null,null,null,null,null,null,null,null,null,null,null,null,null,null,null,null,null,null,4,4,4,4,4,null,4,4,4,null,4,4,null,4]
[null,null,null,"tarea66","glb.",1,9.5,4,null,null,null,null,null,null,null,null,null,null,null,null,null,null,null,null,null,null,null,null,null,null,null,null,null,null,null,null,null,null,null,null,null,null,null,null,null,null,null,null,null,null,null,null,null,null,null,null,null,null,null,null,null,null,null,null,null,null,null,null,null,null,null,null,null,null,null,null,null,null,null,null,null,null,null,null,null,null,null,null,null,null,null,null,null,null,4,4,4,4,null,4,4,4,null,4,4,null,4,4]
[null,null,null,"tarea67","glb.",1,9.5,4,null,null,null,null,null,null,null,null,null,null,null,null,null,null,null,null,null,null,null,null,null,null,null,null,null,null,null,null,null,null,null,null,null,null,null,null,null,null,null,null,null,null,null,null,null,null,null,null,null,null,null,null,null,null,null,null,null,null,null,null,null,null,null,null,null,null,null,null,null,null,null,null,null,null,null,null,null,null,null,null,null,null,null,null,null,null,null,4,4,4,null,4,4,4,null,4,4,null,4,4,4]
[null,null,null,"tarea68","glb.",1,9.5,4,null,null,null,null,null,null,null,null,null,null,null,null,null,null,null,null,null,null,null,null,null,null,null,null,null,null,null,null,null,null,null,null,null,null,null,null,null,null,null,null,null,null,null,null,null,null,null,null,null,null,null,null,null,null,null,null,null,null,null,null,null,null,null,null,null,null,null,null,null,null,null,null,null,null,null,null,null,null,null,null,null,null,null,null,null,null,null,null,null,null,null,null,null,null,null,null,null,null,null,null,4,4,4,4,null,4,4,4,4,4,4,null,4,4,4]